bitfinex-derivatives/quotes_SOLF0:USTF0_20250319
["timestamp","ask_amount","ask_price","bid_price","bid_amount"]
[1742344710040,0.05628328,125.91,125.9,21.0432819]
[1742344711539,1.62759567,125.94,125.93,7.9423]
[1742344711940,1.62759567,125.94,125.93,21.0413819]
[1742344713740,1.62759567,125.94,125.93,13.0990819]
[1742344713947,1.62759567,125.94,125.92,0.05177503]
[1742344714550,1.62759567,125.94,125.92,13.15085693]
[1742344715153,1.62759567,125.94,125.92,0.05177503]
[1742344717054,30.66759567,125.94,125.92,0.05177503]
[1742344717251,38.60929567,125.94,125.92,0.05177503]
[1742344717852,30.66759567,125.94,125.92,0.05177503]
[1742344721957,38.60969567,125.94,125.92,0.05177503]
[1742344722457,7.9423,125.93,125.92,0.05177503]
[1742344722760,30.66759567,125.94,125.92,0.05177503]
[1742344723162,30.66759567,125.94,125.93,7.9423]
[1742344723357,1.62759567,125.94,125.93,7.9423]
[1742344723559,5.92553734,125.96,125.92,20.48463533]
[1742344723864,5.92553734,125.96,125.93,20.4328603]
[1742344725363,5.92553734,125.96,125.95,7.941]
[1742344728071,5.92553734,125.96,125.95,28.3738603]
[1742344728966,29.02,126.01,125.97,7.9393]
[1742344729153,29.02,126.01,125.97,20.4328603]
[1742344729354,29.02,126.01,125.97,7.9395]
[1742344729560,29.02,126.01,125.98,0.05702074]
[1742344729763,49.4528603,126.01,125.98,0.05702074]
[1742344730068,49.4528603,126.01,125.94,7.9415]
[1742344730269,49.5041562,126.01,125.92,32.9449603]
[1742344730666,49.4528603,126.01,125.92,32.9449603]
[1742344731265,0.05593476,125.98,125.95,0.05681585]
[1742344731466,29.02,125.97,125.95,0.05681585]
[1742344732493,7.9404,125.96,125.95,0.05681585]
[1742344732656,29.02,125.97,125.95,0.05681585]
[1742344733062,29.02,125.97,125.95,7.99741585]
[1742344733772,29.02,125.97,125.96,7.9404]
[1742344734168,0.05593476,125.98,125.95,0.05681585]
[1742344734362,0.05593476,125.98,125.97,7.9398]
[1742344736675,29.02,126.03,125.96,20.4328603]
[1742344736866,29.02,126.03,125.95,29.07681585]
[1742344736867,29.02,126.03,125.98,20.4328603]
[1742344737172,36.9564,126.03,126.0,7.9375]
[1742344737574,7.9364,126.03,126.0,7.9375]
[1742344737772,29.02,126.02,126.0,7.99067391]
[1742344738078,29.02,126.02,126.0,0.05317391]
[1742344738576,36.9568,126.02,126.0,0.05317391]
[1742344740671,7.9373,126.01,126.0,0.05317391]
[1742344740876,29.02,126.02,125.94,282.4528603]
[1742344741077,7.9395,125.98,125.94,290.3944603]
[1742344741263,36.9595,125.98,125.94,28.3744603]
[1742344741464,29.02,125.98,125.94,20.4328603]
[1742344741667,7.9399,125.97,125.94,20.4328603]
[1742344741861,29.02,125.98,125.94,20.49324748]
[1742344742065,0.05420723,125.97,125.94,0.06038718]
[1742344742261,7.9406,125.96,125.94,0.06038718]
[1742344742462,0.05420723,125.97,125.94,0.06038718]
[1742344742667,29.02,125.95,125.94,0.06038718]
[1742344742979,36.961,125.95,125.94,0.06038718]
[1742344743570,36.961,125.95,125.88,64.27708114]
[1742344743571,7.943,125.92,125.88,64.27708114]
[1742344743873,36.963,125.92,125.88,64.27708114]
[1742344744279,36.963,125.92,125.88,72.22218114]
[1742344744585,0.05149189,125.91,125.89,0.05504893]
[1742344744971,7.99529189,125.91,125.89,0.05504893]
[1742344745306,0.05149189,125.91,125.89,0.05504893]
[1742344745481,0.05149189,125.91,125.89,7.99964893]
[1742344745977,0.05149189,125.91,125.89,0.05504893]
[1742344746574,7.99519189,125.91,125.89,0.05504893]
[1742344747179,7.9442,125.9,125.89,0.05504893]
[1742344749077,7.99519189,125.91,125.89,0.05504893]
[1742344749492,0.05149189,125.91,125.89,0.05504893]
[1742344750478,0.05149189,125.91,125.9,28.3770603]
[1742344752384,0.05149189,125.91,125.9,7.9442]
[1742344752568,29.07149189,125.91,125.89,7.99964893]
[1742344752772,29.07149189,125.91,125.89,0.05504893]
[1742344753183,29.07149189,125.91,125.89,7.99944893]
[1742344754381,29.07149189,125.91,125.89,0.05504893]
[1742344754773,37.01519189,125.91,125.89,0.05504893]
[1742344754976,29.07149189,125.91,125.89,0.05504893]
[1742344756170,29.07149189,125.91,125.89,7.99974893]
[1742344756480,29.07149189,125.91,125.89,0.05504893]
[1742344757279,29.07149189,125.91,125.9,7.9442]
[1742344757490,0.05149189,125.91,125.9,28.3770603]
[1742344759183,0.05149189,125.91,125.9,20.4328603]
[1742344759681,0.05149189,125.91,125.89,7.99964893]
[1742344759982,0.05149189,125.91,125.89,0.05504893]
[1742344761087,7.99549189,125.91,125.89,0.05504893]
[1742344761486,29.02,125.9,125.89,0.05504893]
[1742344764593,7.9457,125.88,125.84,28.3806603]
[1742344764784,29.02,125.9,125.84,28.3806603]
[1742344765383,7.9459,125.88,125.84,28.3806603]
[1742344765892,0.05317497,125.87,125.85,0.05250061]
[1742344766194,37.01947497,125.87,125.85,0.05250061]
[1742344766795,29.07317497,125.87,125.85,7.99980061]
[1742344769397,29.07317497,125.87,125.85,0.05250061]
[1742344770085,29.07317497,125.87,125.76,120.57160732]
[1742344770291,29.02,125.87,125.78,20.4328603]
[1742344770491,29.02,125.87,125.8,20.4328603]
[1742344770896,29.02,125.87,125.82,20.4328603]
[1742344771090,36.9664,125.87,125.82,20.4328603]
[1742344771393,0.05101707,125.86,125.83,0.05049358]
[1742344771882,7.99781707,125.86,125.83,0.05049358]
[1742344772402,7.9479,125.85,125.83,0.05049358]
[1742344772597,29.02,125.84,125.83,0.05049358]
[1742344773898,36.968,125.84,125.83,0.05049358]
[1742344775299,7.9494,125.82,125.78,7.9515]
[1742344776600,0.05592214,125.81,125.79,0.05805013]
[1742344777490,8.00582214,125.81,125.79,0.05805013]
[1742344779411,0.05592214,125.81,125.79,0.05805013]
[1742344780214,29.09592214,125.81,125.79,0.05805013]
[1742344782918,7.9505,125.8,125.79,0.05805013]
[1742344784121,29.09592214,125.81,125.79,0.05805013]
[1742344786616,29.09592214,125.81,125.79,8.00905013]
[1742344787917,29.09592214,125.81,125.8,7.9505]
[1742344788117,29.09592214,125.81,125.79,0.05805013]
[1742344788620,29.09592214,125.81,125.79,8.00855013]
[1742344790121,29.09592214,125.81,125.8,7.9505]
[1742344791222,0.05592214,125.81,125.8,7.9505]
[1742344791411,29.09592214,125.81,125.8,7.9505]
[1742344793523,0.05592214,125.81,125.8,7.9505]
[1742344796426,55.3617,125.82,125.81,7.9499]
[1742344796765,18.50385744,125.82,125.81,7.9499]
[1742344797127,5.744e-05,125.82,125.81,7.9499]
[1742344797925,29.04,125.87,125.86,7.9467]
[1742344798121,29.04,125.88,125.82,20.4328603]
[1742344798325,29.04,125.88,125.85,7.9468]
[1742344798868,29.04,125.88,125.82,20.4328603]
[1742344799027,29.0935766,125.88,125.85,8.00421968]
[1742344800522,29.0935766,125.88,125.85,0.05711968]
[1742344801416,29.0935766,125.88,125.86,7.9463]
[1742344801618,29.0935766,125.88,125.85,0.05711968]
[1742344801924,0.0535766,125.88,125.86,7.9467]
[1742344802820,0.0535766,125.88,125.85,8.00421968]
[1742344803829,7.9463,125.87,125.85,0.05711968]
[1742344804329,29.04,125.86,125.85,0.05711968]
[1742344804524,36.9867,125.86,125.85,0.05711968]
[1742344804728,29.04,125.86,125.79,29.04]
[1742344804928,7.948,125.84,125.81,7.9495]
[1742344805330,49.4728603,125.86,125.79,29.04]
[1742344805532,7.9483,125.84,125.8,7.9501]
[1742344805924,0.05710215,125.83,125.81,0.05386981]
[1742344807028,57.4220603,125.82,125.81,0.05386981]
[1742344807422,7.9503,125.81,125.78,43.84422084]
[1742344807928,29.04,125.82,125.78,43.84422084]
[1742344808435,29.04,125.82,125.79,7.9508]
[1742344808729,29.04,125.82,125.79,8.00426703]
[1742344809532,29.04,125.82,125.8,7.9505]
[1742344810434,29.04,125.82,125.79,8.00446703]
[1742344810683,29.04,125.82,125.79,0.05346703]
[1742344811539,29.09710215,125.83,125.8,7.9499]
[1742344813539,37.04580215,125.83,125.8,7.9499]
[1742344813930,29.09710215,125.83,125.8,7.9499]
[1742344815325,29.09710215,125.83,125.81,7.9499]
[1742344815530,29.09710215,125.83,125.79,0.05346703]
[1742344816444,37.04600215,125.83,125.8,7.9503]
[1742344817849,29.09710215,125.83,125.8,7.9503]
[1742344818149,29.09710215,125.83,125.81,7.9495]
[1742344818646,0.05710215,125.83,125.82,7.9492]
[1742344819552,0.05710215,125.83,125.81,7.9496]
[1742344820354,0.05710215,125.83,125.79,0.05346703]
[1742344820537,10.21643015,125.81,125.79,0.05346703]
[1742344820849,7.9505,125.8,125.79,0.05346703]
[1742344822558,7.952,125.78,125.75,51.79762084]
[1742344822742,29.1,125.77,125.75,7.9534]
[1742344823647,29.15860084,125.77,125.75,8.01035305]
[1742344823951,37.11160084,125.77,125.75,0.05695305]
[1742344824748,29.15860084,125.77,125.75,8.01035305]
[1742344826548,29.15860084,125.77,125.75,0.05695305]
[1742344826745,0.05860084,125.77,125.75,0.05695305]
[1742344827339,0.05860084,125.77,125.76,7.953]
[1742344828349,0.05860084,125.77,125.75,8.01015305]
[1742344829147,0.05860084,125.77,125.75,0.05695305]
[1742344829452,29.15860084,125.77,125.75,0.05695305]
[1742344830554,29.15860084,125.77,125.75,8.01035305]
[1742344831549,29.15860084,125.77,125.76,7.953]
[1742344832962,123.28992928,125.77,125.76,7.953]
[1742344834460,123.28992928,125.77,125.75,8.01045305]
[1742344835564,123.28992928,125.77,125.75,0.05695305]
[1742344836062,131.24272928,125.77,125.75,0.05695305]
[1742344836367,123.28992928,125.77,125.75,0.05695305]
[1742344836664,123.28992928,125.77,125.72,12.6713]
[1742344836665,7.953,125.76,125.7,20.4328603]
[1742344837056,123.23132844,125.77,125.7,20.4328603]
[1742344837263,7.9538,125.75,125.7,20.4328603]
[1742344837559,123.23132844,125.77,125.7,20.4328603]
[1742344837765,0.0560865,125.74,125.71,0.05140404]
[1742344838464,0.0560865,125.74,125.72,20.4328603]
[1742344838650,0.0560865,125.74,125.73,7.9549]
[1742344841471,0.0560865,125.74,125.72,7.9553]
[1742344842958,0.0560865,125.74,125.71,0.05140404]
[1742344844058,0.0560865,125.74,125.73,7.9549]
[1742344847868,0.0560865,125.74,125.73,7.9549]
[1742344850765,0.0560865,125.74,125.73,21.07151814]
[1742344851873,0.0560865,125.74,125.72,21.07191814]
[1742344852167,0.0560865,125.74,125.72,7.9553]
[1742344853163,13.11661814,125.73,125.71,0.05140404]
[1742344853565,21.07181814,125.73,125.71,0.05140404]
[1742344853962,7.9552,125.73,125.71,0.05140404]
[1742344854671,21.07221814,125.72,125.71,0.05140404]
[1742344854873,13.11661814,125.72,125.68,13.11661814]
[1742344855169,29.06,125.71,125.67,56.96083898]
[1742344855370,29.06,125.71,125.67,64.91923898]
[1742344855872,37.0164,125.71,125.68,7.958]
[1742344856071,0.0589338,125.7,125.68,21.13232539]
[1742344856258,0.0589338,125.7,125.68,13.17432539]
[1742344856571,0.0589338,125.7,125.69,7.9575]
[1742344856972,0.0589338,125.7,125.69,21.07411814]
[1742344859768,29.06,125.76,125.69,25.19641814]
[1742344860082,29.06,125.76,125.74,13.11661814]
[1742344860976,29.11956618,125.76,125.74,13.16774621]
[1742344861980,29.11956618,125.76,125.75,7.9537]
[1742344866785,0.05956618,125.76,125.75,7.9537]
[1742344867480,0.05956618,125.76,125.74,21.12174621]
[1742344868182,0.05956618,125.76,125.75,7.9537]
[1742344868982,0.05956618,125.76,125.74,21.12174621]
[1742344870080,0.05956618,125.76,125.74,13.16774621]
[1742344870284,0.05956618,125.76,125.74,0.05112807]
[1742344870782,0.05956618,125.76,125.74,21.12204621]
[1742344870982,0.05956618,125.76,125.74,13.16774621]
[1742344871585,0.05956618,125.76,125.74,21.12164621]
[1742344872984,0.05956618,125.76,125.75,21.07031814]
[1742344873779,0.05956618,125.76,125.74,21.12184621]
[1742344873980,0.05956618,125.76,125.74,13.16774621]
[1742344874686,0.05956618,125.76,125.75,7.9537]
[1742344875588,0.05956618,125.76,125.74,21.12184621]
[1742344877482,88.34979985,125.9,125.75,13.11661814]
[1742344877783,42.24448005,125.85,125.82,13.11661814]
[1742344877977,42.24448005,125.85,125.83,21.06481814]
[1742344878179,29.06,125.85,125.83,13.11661814]
[1742344878488,29.06,125.85,125.82,21.06551814]
[1742344878688,29.12087096,125.85,125.83,0.06092594]
[1742344879387,0.06087096,125.85,125.83,0.06092594]
[1742344879587,29.12087096,125.85,125.83,0.06092594]
[1742344879794,42.2374891,125.85,125.83,0.06092594]
[1742344881185,29.12087096,125.85,125.83,0.06092594]
[1742344881887,0.06087096,125.85,125.84,7.948]
[1742344885096,0.06087096,125.85,125.83,28.47745384]
[1742344888888,0.06087096,125.85,125.84,7.948]
[1742344889089,29.04,125.89,125.84,7.948]
[1742344889295,29.04,125.89,125.85,20.4681279]
[1742344889689,29.04,125.89,125.83,20.4681279]
[1742344890291,0.06116201,125.87,125.85,0.05342858]
[1742344890599,0.06116201,125.87,125.85,8.00032858]
[1742344891599,0.06116201,125.87,125.85,0.05342858]
[1742344894301,8.00766201,125.87,125.85,0.05342858]
[1742344895196,0.06116201,125.87,125.85,0.05342858]
[1742344896600,8.00736201,125.87,125.85,0.05342858]
[1742344897001,0.06116201,125.87,125.85,8.00072858]
[1742344897902,262.26,125.98,125.86,20.4681279]
[1742344898097,53.4229279,125.95,125.86,20.4681279]
[1742344898601,53.4229279,125.95,125.88,7.9453]
[1742344899002,53.4229279,125.95,125.87,7.9458]
[1742344899202,0.05521009,125.93,125.9,0.05340999]
[1742344899399,29.02,125.92,125.9,0.05340999]
[1742344900606,29.07521009,125.93,125.9,0.05340999]
[1742344901103,29.07521009,125.93,125.9,21.07753847]
[1742344901291,29.07521009,125.93,125.91,6.54016424]
[1742344901604,0.05521009,125.93,125.91,6.54016424]
[1742344901904,0.05521009,125.93,125.9,21.07773847]
[1742344904104,0.05521009,125.93,125.92,13.08032848]
[1742344904805,36.9602,125.97,125.92,13.08032848]
[1742344904994,36.9602,125.97,125.94,13.08032848]
[1742344905496,36.9602,125.97,125.93,21.02232848]
[1742344905901,7.99934844,125.96,125.94,0.05596267]
[1742344907502,7.941,125.95,125.94,0.05596267]
[1742344910910,0.05894844,125.96,125.94,0.05596267]
[1742344912314,0.05894844,125.96,125.94,7.99726267]
[1742344913916,0.05894844,125.96,125.94,0.05596267]
[1742344914515,0.05894844,125.96,125.94,7.99726267]
[1742344915010,0.05894844,125.96,125.95,7.941]
[1742344915216,0.0172477,125.96,125.95,7.941]
[1742344917415,0.0172477,125.96,125.94,20.48881071]
[1742344919013,0.0172477,125.96,125.94,7.99766267]
[1742344921017,0.0172477,125.96,125.95,7.941]
[1742344922015,0.0172477,125.96,125.94,28.43021071]
[1742344922411,0.0172477,125.96,125.94,20.48881071]
[1742344922806,0.0172477,125.96,125.95,7.941]
[1742344923224,0.0172477,125.96,125.94,20.48881071]
[1742344923412,0.0172477,125.96,125.94,28.43011071]
[1742344925117,0.0172477,125.96,125.95,7.941]
[1742344925318,0.0172477,125.96,125.95,36.941]
[1742344929919,0.0172477,125.96,125.94,7.99726267]
[1742344930718,0.0172477,125.96,125.95,7.941]
[1742344931117,0.0172477,125.96,125.95,21.00900914]
[1742344932425,29.0,126.0,125.99,7.9385]
[1742344932624,262.18,126.03,125.98,6.53400457]
[1742344932823,29.0,126.03,125.99,13.06800914]
[1742344933126,29.0,126.03,125.98,20.40733482]
[1742344933424,36.9361,126.03,125.99,7.9382]
[1742344933724,0.05976697,126.02,125.99,0.05960805]
[1742344936330,0.05976697,126.02,126.0,7.9377]
[1742344937120,0.05976697,126.02,125.99,0.05960805]
[1742344939624,0.05976697,126.02,125.99,7.99780805]
[1742344939929,0.05976697,126.02,125.99,0.05960805]
[1742344941026,0.05976697,126.02,126.0,7.9378]
[1742344944126,0.05976697,126.02,125.99,7.99780805]
[1742344945536,0.05976697,126.02,126.0,7.9378]
[1742344946736,0.05976697,126.02,125.99,7.99780805]
[1742344949735,0.05976697,126.02,126.0,7.9378]
[1742344950130,0.05976697,126.02,125.99,0.05960805]
[1742344950330,0.05976697,126.02,126.01,7.9373]
[1742344951539,0.05976697,126.02,126.0,7.9377]
[1742344953141,0.05976697,126.02,126.0,20.99775842]
[1742344955038,0.05976697,126.02,125.99,13.11966647]
[1742344956434,7.99666697,126.02,125.99,21.05796647]
[1742344957650,0.05976697,126.02,125.99,0.05960805]
[1742344957846,13.11982539,126.02,125.99,0.05960805]
[1742344959346,7.9379,126.0,125.99,0.05960805]
[1742344959543,42.04005842,126.0,125.95,13.06005842]
[1742344959749,13.06005842,125.99,125.95,13.06005842]
[1742344959945,13.06005842,125.96,125.93,10.96105521]
[1742344960152,42.04005842,125.96,125.93,10.96105521]
[1742344960539,28.98,125.96,125.93,24.02111363]
[1742344960837,29.03425818,125.96,125.93,24.07878423]
[1742344961137,7.9414,125.95,125.93,24.07878423]
[1742344961748,29.03425818,125.96,125.93,11.01872581]
[1742344962041,13.06005842,125.95,125.93,0.0576706]
[1742344962240,13.06005842,125.94,125.93,0.0576706]
[1742344962443,13.06005842,125.94,125.88,274.96005842]
[1742344962654,13.06005842,125.92,125.88,261.9]
[1742344962942,13.06005842,125.92,125.87,13.06005842]
[1742344963146,7.9446,125.9,125.86,18.90735521]
[1742344963350,28.98,125.9,125.86,10.96105521]
[1742344963643,28.98,125.9,125.87,7.946]
[1742344963849,0.05391741,125.89,125.87,8.00038297]
[1742344964847,0.05391741,125.89,125.87,0.05438297]
[1742344965441,0.05391741,125.89,125.87,8.00038297]
[1742344966442,0.05391741,125.89,125.88,7.9455]
[1742344967851,0.05391741,125.89,125.87,28.44958657]
[1742344969753,0.05391741,125.89,125.88,7.9455]
[1742344971150,0.05391741,125.89,125.87,0.05438297]
[1742344971356,0.05391741,125.89,125.81,20.4494036]
[1742344971554,28.98,125.9,125.81,20.4494036]
[1742344971853,36.8793,125.9,125.83,7.9482]
[1742344972055,40.6789,125.9,125.81,20.4494036]
[1742344972451,0.05109316,125.87,125.84,0.05323116]
[1742344972754,29.0,125.86,125.84,0.05323116]
[1742344973055,0.05109316,125.87,125.85,20.4494036]
[1742344974848,0.05109316,125.87,125.85,28.3961036]
[1742344975757,0.05109316,125.87,125.86,7.9467]
[1742344976658,0.05109316,125.87,125.85,28.3965036]
[1742344977258,0.05109316,125.87,125.85,20.4494036]
[1742344977761,0.05109316,125.87,125.84,8.00083116]
[1742344978857,0.05109316,125.87,125.85,7.9472]
[1742344984264,0.05109316,125.87,125.86,7.9467]
[1742344985050,0.05109316,125.87,125.84,0.05323116]
[1742344985250,29.02,125.86,125.84,0.05323116]
[1742344985461,29.02,125.86,125.84,13.14362546]
[1742344985653,29.02,125.86,125.85,13.0903943]
[1742344986560,29.02,125.86,125.84,13.14362546]
[1742344986862,29.02,125.86,125.84,0.05323116]
[1742344987672,29.02,125.86,125.84,21.09122546]
[1742344988967,29.02,125.86,125.84,13.14362546]
[1742344989769,29.02,125.86,125.84,21.09152546]
[1742344989967,29.02,125.86,125.84,0.05323116]
[1742344990369,36.9669,125.86,125.84,0.05323116]
[1742344990570,42.1103943,125.86,125.84,0.05323116]
[1742344990971,7.9473,125.85,125.84,0.05323116]
[1742344992065,21.0376943,125.85,125.84,0.05323116]
[1742344993072,36.9669,125.86,125.84,0.05323116]
[1742344996475,7.9473,125.85,125.84,0.05323116]
[1742344999479,21.0376943,125.85,125.84,0.05323116]
[1742345001269,13.0903943,125.85,125.84,0.05323116]
[1742345001665,50.0573943,125.86,125.84,0.05323116]
[1742345002679,7.9473,125.85,125.84,0.05323116]
[1742345004977,50.0572943,125.86,125.84,0.05323116]
[1742345005276,36.9669,125.86,125.84,0.05323116]
[1742345006177,7.9473,125.85,125.84,0.05323116]
[1742345014779,29.02,125.86,125.84,0.05323116]
[1742345015487,13.0903943,125.85,125.79,24.8163943]
[1742345015678,13.0903943,125.83,125.79,13.0903943]
[1742345015872,29.02,125.82,125.79,13.0903943]
[1742345016076,36.9696,125.82,125.79,7.9507]
[1742345016672,7.9499,125.81,125.79,0.05014175]
[1742345016876,29.08044348,125.82,125.79,0.05014175]
[1742345017380,37.03014348,125.82,125.79,8.00114175]
[1742345018280,42.17083778,125.82,125.79,0.05014175]
[1742345018477,13.0903943,125.81,125.79,0.05014175]
[1742345018880,21.0405943,125.81,125.79,0.05014175]
[1742345020388,7.9505,125.8,125.79,0.05014175]
[1742345020588,21.0408943,125.8,125.79,0.05014175]
[1742345021187,7.9505,125.8,125.79,0.05014175]
[1742345023183,21.0408943,125.8,125.79,0.05014175]
[1742345023585,7.9518,125.78,125.76,7.9528]
[1742345023787,29.02,125.77,125.75,21.0437943]
[1742345023987,29.02,125.77,125.75,7.9534]
[1742345024188,29.02,125.77,125.74,13.0903943]
[1742345024784,29.07831829,125.77,125.75,7.9534]
[1742345025381,37.03081829,125.77,125.74,21.10262283]
[1742345025579,29.07831829,125.77,125.74,21.10262283]
[1742345025790,29.07831829,125.77,125.75,13.0903943]
[1742345026586,29.07831829,125.77,125.76,7.953]
[1742345027393,29.07831829,125.77,125.75,21.0437943]
[1742345027589,29.07831829,125.77,125.75,7.9534]
[1742345027789,29.07831829,125.77,125.74,13.14862283]
[1742345027995,29.07831829,125.77,125.74,21.10262283]
[1742345028194,29.07831829,125.77,125.74,8.01222853]
[1742345028995,37.03081829,125.77,125.74,8.01222853]
[1742345029295,50.12121259,125.77,125.74,0.05822853]
[1742345029492,42.16871259,125.77,125.74,0.05822853]
[1742345029692,21.0437943,125.76,125.74,0.05822853]
[1742345030296,7.9537,125.75,125.74,0.05822853]
[1742345032707,21.0436943,125.76,125.74,0.05822853]
[1742345036001,7.9537,125.75,125.74,0.05822853]
[1742345038703,21.0435943,125.76,125.74,0.05822853]
[1742345039802,50.12131259,125.77,125.74,8.01232853]
[1742345040597,7.9531,125.76,125.74,0.05822853]
[1742345041403,50.12131259,125.77,125.74,8.01252853]
[1742345042402,7.9531,125.76,125.74,8.01252853]
[1742345043002,7.9531,125.76,125.74,0.05822853]
[1742345050716,21.0440943,125.75,125.74,0.05822853]
[1742345051212,7.9537,125.75,125.74,0.05822853]
[1742345052215,21.0440943,125.75,125.74,0.05822853]
[1742345052515,13.0903943,125.75,125.71,13.0903943]
[1742345052716,29.04,125.74,125.71,21.0460943]
[1742345052910,29.04,125.73,125.71,13.0903943]
[1742345053309,29.04,125.73,125.72,7.9554]
[1742345053615,29.09130176,125.73,125.72,7.9554]
[1742345054711,29.09130176,125.73,125.72,21.0457943]
[1742345056715,0.05130176,125.73,125.72,21.0457943]
[1742345057218,29.04,125.75,125.74,7.9543]
[1742345057414,29.04,125.75,125.74,21.0446943]
[1742345057616,50.0903943,125.75,125.65,43.84422084]
[1742345057817,13.0903943,125.7,125.65,56.93461514]
[1742345058014,29.04,125.69,125.65,43.84422084]
[1742345058216,36.9978,125.69,125.65,43.84422084]
[1742345058416,13.0903943,125.68,125.65,43.84422084]
[1742345058718,13.0903943,125.67,125.65,43.84422084]
[1742345058920,29.04,125.66,125.65,131.58732336]
[1742345059514,36.9994,125.66,125.65,131.58732336]
[1742345059720,29.04,125.66,125.65,131.58732336]
[1742345060319,21.10082119,125.68,125.65,131.58732336]
[1742345060524,29.04,125.67,125.65,131.58732336]
[1742345060918,36.9989,125.67,125.65,131.58732336]
[1742345062026,36.9989,125.67,125.65,0.05466086]
[1742345062829,7.9594,125.66,125.65,0.05466086]
[1742345063426,21.0497943,125.66,125.65,0.05466086]
[1742345064025,7.9607,125.64,125.61,17.0871943]
[1742345064229,29.04,125.63,125.61,17.0871943]
[1742345065126,29.04,125.63,125.61,17.14579479]
[1742345065127,29.09104072,125.63,125.61,17.14579479]
[1742345066230,37.05234072,125.63,125.61,0.05860049]
[1742345067025,29.09104072,125.63,125.61,0.05860049]
[1742345067229,29.09104072,125.63,125.61,13.14899479]
[1742345068029,29.09104072,125.63,125.61,21.11119479]
[1742345068330,29.09104072,125.63,125.62,13.0903943]
[1742345068831,29.09104072,125.63,125.62,21.0522943]
[1742345069419,0.05104072,125.63,125.62,21.0522943]
[1742345073848,0.05104072,125.63,125.62,7.9619]
[1742345074849,262.48,125.72,125.62,50.1103943]
[1742345075050,13.0903943,125.7,125.66,13.0903943]
[1742345075744,13.0903943,125.7,125.67,7.9584]
[1742345075745,21.0476943,125.7,125.67,7.9584]
[1742345075949,13.14457877,125.7,125.67,0.0573834]
[1742345076152,13.0903943,125.68,125.67,0.0573834]
[1742345076344,42.1503943,125.68,125.67,0.0573834]
[1742345076546,50.1084943,125.68,125.67,0.0573834]
[1742345078151,42.1503943,125.68,125.67,0.0573834]
[1742345078750,29.06,125.68,125.67,0.0573834]
[1742345079051,29.06,125.68,125.67,8.0160834]
[1742345080443,29.06,125.68,125.67,0.0573834]
[1742345082953,21.0483943,125.69,125.67,0.0573834]
[1742345083156,29.06,125.68,125.67,0.0573834]
[1742345083456,29.06,125.68,125.67,8.0160834]
[1742345083846,29.11418447,125.7,125.67,0.0573834]
[1742345084350,29.11418447,125.7,125.68,7.9578]
[1742345084556,13.14457877,125.7,125.67,0.0573834]
[1742345084744,42.20457877,125.7,125.67,0.0573834]
[1742345084949,50.16177877,125.7,125.67,8.0158834]
[1742345086260,21.10177877,125.7,125.67,8.0158834]
[1742345086557,29.11418447,125.7,125.68,7.9576]
[1742345086753,29.11418447,125.7,125.67,13.1477777]
[1742345086952,29.11418447,125.7,125.68,7.9577]
[1742345087152,29.11418447,125.7,125.67,13.1477777]
[1742345087851,29.11418447,125.7,125.69,7.9575]
[1742345088056,0.05418447,125.7,125.69,7.9575]
[1742345088551,0.05418447,125.7,125.69,21.0478943]
[1742345089553,29.04,125.73,125.72,7.9556]
[1742345089954,29.04,125.73,125.71,13.0903943]
[1742345089955,29.04,125.73,125.71,7.9559]
[1742345090155,13.0903943,125.72,125.66,20.8810943]
[1742345090351,13.0903943,125.71,125.66,20.8810943]
[1742345090550,0.05251916,125.7,125.68,8.00999671]
[1742345090753,0.05251916,125.7,125.68,0.05229671]
[1742345093960,8.00931916,125.7,125.68,0.05229671]
[1742345094161,0.05251916,125.7,125.68,0.05229671]
[1742345094568,29.09251916,125.7,125.68,0.05229671]
[1742345095057,7.9575,125.69,125.68,0.05229671]
[1742345096262,50.14001346,125.7,125.68,0.05229671]
[1742345097264,7.9575,125.69,125.68,0.05229671]
[1742345100667,50.14001346,125.7,125.68,0.05229671]
[1742345101364,7.9575,125.69,125.68,0.05229671]
[1742345102065,37.04961916,125.7,125.68,0.05229671]
[1742345102463,7.9575,125.69,125.68,0.05229671]
[1742345103571,37.04961916,125.7,125.68,0.05229671]
[1742345103771,42.18291346,125.7,125.68,0.05229671]
[1742345104160,13.14291346,125.7,125.68,0.05229671]
[1742345104368,7.9575,125.69,125.68,0.05229671]
[1742345104768,8.00961916,125.7,125.68,0.05229671]
[1742345105772,0.05251916,125.7,125.68,0.05229671]
[1742345106167,0.05251916,125.7,125.68,8.01009671]
[1742345106363,0.05251916,125.7,125.68,13.14269101]
[1742345106665,0.05251916,125.7,125.69,13.0903943]